fUST/lending_fUST_20250121
["ID","MTS","AMOUNT","RATE_DAILY","PERIOD"]
[349782860,1737425442153,-500.0,0.00021917,3]
[349782861,1737425442162,-218.77430758,0.00021917,3]
[349782862,1737425442172,-504.75741328,0.00021917,3]
[349782863,1737425442181,-500.0,0.00021917,3]
[349782864,1737425442191,-500.0,0.00021917,3]
[349782865,1737425442200,-1000.29,0.00021917,3]
[349782866,1737425442210,-638.19,0.00021917,3]
[349782867,1737425442219,-507.51268569,0.00021917,3]
[349782868,1737425442228,-500.0,0.00021917,3]
[349782869,1737425442238,-500.0,0.00021917,3]
[349782870,1737425442247,-501.77299899,0.00021917,3]
[349782871,1737425442257,-954.2,0.00021917,3]
[349782872,1737425442266,-500.0,0.00021917,3]
[349782873,1737425442275,-500.0,0.00021917,3]
[349782874,1737425442286,-500.0,0.00021917,3]
[349782875,1737425442296,-500.0,0.00021917,3]
[349782876,1737425442306,-500.0,0.00021917,3]
[349782877,1737425442315,-1749.42,0.00021917,3]
[349782878,1737425442325,-970.03,0.00021917,3]
[349782879,1737425442339,-500.0,0.00021917,3]
[349782880,1737425442349,-500.0,0.00021917,3]
[349782881,1737425442358,-500.0,0.00021917,3]
[349782882,1737425442368,-500.0,0.00021917,3]
[349782883,1737425442377,-513.61275153,0.00021917,3]
[349782884,1737425442386,-500.0,0.00021917,3]
[349782885,1737425442395,-500.0,0.00021917,3]
[349782886,1737425442404,-524.33,0.00021917,3]
[349782887,1737425442414,-500.0,0.00021917,3]
[349782888,1737425442423,-500.0,0.00021917,3]
[349782889,1737425442433,-500.0,0.00021917,3]
[349782890,1737425442443,-500.0,0.00021917,3]
[349782891,1737425442452,-500.0,0.00021917,3]
[349782892,1737425442462,-770.62,0.00021917,3]
[349782893,1737425442471,-500.0,0.00021917,3]
[349782894,1737425442480,-935.73,0.00021917,3]
[349782895,1737425442490,-500.0,0.00021917,3]
[349782896,1737425442499,-301.95892021,0.00021917,3]
[349782897,1737425442508,-155.040618,0.00021917,2]
[349782898,1737425442518,-500.0,0.00021917,3]
[349782899,1737425442527,-500.0,0.00021917,3]
[349782900,1737425442536,-500.0,0.00021917,3]
[349782901,1737425442545,-500.0,0.00021917,3]
[349782902,1737425442555,-500.0,0.00021917,3]
[349782903,1737425442564,-502.40940973,0.00021917,3]
[349782904,1737425442573,-500.0,0.00021917,3]
[349782905,1737425442585,-500.0,0.00021917,3]
[349782906,1737425442594,-502.58,0.00021917,3]
[349782907,1737425442604,-500.0,0.00021917,3]
[349782908,1737425442617,-554.39,0.00021917,3]
[349782909,1737425442626,-154.039998,0.00021917,2]
[349782910,1737425442636,-784.95,0.00021917,3]
[349782911,1737425442645,-500.0,0.00021917,3]
[349782912,1737425442658,-359.90635044,0.00021917,3]
[349782913,1737425442668,-1227.27,0.00021917,3]
[349782914,1737425442678,-500.0,0.00021917,3]
[349782915,1737425442687,-1170.93,0.00021917,3]
[349782916,1737425442698,-1435.95,0.00021917,3]
[349782917,1737425442708,-589.18231763,0.00021917,3]
[349782918,1737425442718,-571.85842819,0.00021917,3]
[349782919,1737425442728,-500.0,0.00021917,3]
[349782920,1737425442738,-500.0,0.00021917,3]
[349782921,1737425442748,-151.0,0.00021917,2]
[349782922,1737425442757,-151.0,0.00021917,2]
[349782923,1737425442767,-151.0,0.00021917,2]
[349782924,1737425442776,-500.0,0.00021917,3]
[349782925,1737425442785,-151.0,0.00021917,2]
[349782926,1737425442794,-151.0,0.00021917,2]
[349782927,1737425442804,-231.54649,0.00021917,2]
[349782928,1737425442813,-151.0,0.00021917,2]
[349782929,1737425442823,-558.39,0.00021917,3]
[349782930,1737425442832,-501.61926723,0.00021917,3]
[349782931,1737425442843,-500.0,0.00021917,3]
[349782932,1737425442853,-500.0,0.00021917,3]
[349782933,1737425442863,-456.62546172,0.00021917,3]
[349782934,1737425442872,-517.60605406,0.00021917,3]
[349782935,1737425442882,-500.77985527,0.00021917,2]
[349782936,1737425442891,-500.0,0.00021917,3]
[349782937,1737425442900,-500.0,0.00021917,3]
[349782938,1737425442910,-500.0,0.00021917,3]
[349782939,1737425442920,-505.07099914,0.00021917,3]
[349782940,1737425442929,-500.0,0.00021917,3]
[349782941,1737425442939,-501.93366693,0.00021917,3]
[349782942,1737425442949,-500.0,0.00021917,3]
[349782945,1737425442960,-500.0,0.00021917,3]
[349782946,1737425442969,-500.0,0.00021917,3]
[349782947,1737425442978,-251.33064673,0.00021917,3]
[349782948,1737425442988,-500.0,0.00021917,3]
[349782949,1737425442997,-502.12891973,0.00021917,3]
[349782950,1737425443007,-975.92,0.00021917,3]
[349782951,1737425443016,-500.0,0.00021917,3]
[349782952,1737425443025,-505.84092978,0.00021917,3]
[349782953,1737425443035,-151.0,0.00021917,2]
[349782955,1737425443044,-157.819528,0.00021917,2]
[349782957,1737425443054,-507.06621769,0.00021917,3]
[349782959,1737425443063,-500.0,0.00021917,3]
[349782960,1737425443072,-501.02250542,0.00021917,3]
[349782961,1737425443081,-500.0,0.00021917,3]
[349782962,1737425443094,-500.0,0.00021917,3]
[349782963,1737425443103,-500.0,0.00021917,3]
[349782964,1737425443112,-500.0,0.00021917,3]
[349782965,1737425443122,-502.7830541,0.00021917,3]
[349782966,1737425443131,-522.79897237,0.00021917,3]
[349782967,1737425443144,-566.29787719,0.00021917,3]
[349782968,1737425443159,-500.0,0.00021917,3]
[349782969,1737425443171,-500.0,0.00021917,3]
[349782970,1737425443185,-500.0,0.00021917,3]
[349782971,1737425443201,-500.0,0.00021917,3]
[349782972,1737425443213,-500.0,0.00021917,3]
[349782973,1737425443223,-662.97,0.00021917,3]
[349782974,1737425443235,-500.0,0.00021917,3]
[349782975,1737425443246,-500.0,0.00021917,3]
[349782976,1737425443255,-500.0,0.00021917,3]
[349782978,1737425443267,-2577.85,0.00021917,2]
[349782980,1737425443277,-500.0,0.00021917,3]
[349782982,1737425443287,-345.35916834,0.00021917,3]
[349782984,1737425443298,-500.0,0.00021917,3]
[349782986,1737425443307,-502.320862,0.00021917,3]
[349782988,1737425443317,-501.77680591,0.00021917,3]
[349782990,1737425443329,-504.12609168,0.00021917,3]
[349782991,1737425443342,-501.56577711,0.00021917,3]
[349782992,1737425443353,-151.0,0.00021917,2]
[349782993,1737425443364,-151.0,0.00021917,2]
[349782994,1737425443374,-164.380931,0.00021917,2]
[349782996,1737425443385,-2373.31,0.00021917,3]
[349782998,1737425443396,-500.0,0.00021917,3]
[349782999,1737425443406,-500.0,0.00021917,3]
[349783001,1737425443417,-500.0,0.00021917,3]
[349783002,1737425443428,-500.0,0.00021917,3]
[349783003,1737425443438,-1936.57,0.00021917,3]
[349783004,1737425443449,-500.0,0.00021917,3]
[349783005,1737425443461,-500.0,0.00021917,3]
[349783006,1737425443471,-511.9003584,0.00021917,3]
[349783007,1737425443482,-500.0,0.00021917,3]
[349783008,1737425443493,-500.0,0.00021917,3]
[349783009,1737425443502,-1077.88,0.00021917,3]
[349783010,1737425443511,-506.16591319,0.00021917,3]
[349783011,1737425443522,-151.0,0.00021917,2]
[349783012,1737425443532,-151.0,0.00021917,2]
[349783013,1737425443541,-5551.59,0.00021917,3]
[349783014,1737425443551,-151.0,0.00021917,2]
[349783015,1737425443560,-151.0,0.00021917,2]
[349783016,1737425443569,-500.0,0.00021917,3]
[349783017,1737425443579,-1881.0,0.00021917,3]
[349783018,1737425443592,-14757.26,0.00021917,3]
[349783019,1737425443602,-500.0,0.00021917,2]
[349783020,1737425443613,-520.39277191,0.00021917,3]
[349783021,1737425443623,-500.0,0.00021917,3]
[349783022,1737425443633,-500.0,0.00021917,3]
[349783023,1737425443642,-1631.37,0.00021917,3]
[349783024,1737425443656,-500.0,0.00021917,3]
[349783025,1737425443666,-500.0,0.00021917,3]
[349783026,1737425443676,-502.14334225,0.00021917,3]
[349783027,1737425443686,-2059.46,0.00021917,3]
[349783028,1737425443695,-500.0,0.00021917,3]
[349783029,1737425443704,-505.92903326,0.00021917,3]
[349783030,1737425443714,-843.01,0.00021917,3]
[349783031,1737425443723,-500.0,0.00021917,3]
[349783032,1737425443734,-502.2728409,0.00021917,3]
[349783033,1737425443744,-500.0,0.00021917,3]
[349783034,1737425443754,-151.0,0.00021917,2]
[349783035,1737425443763,-500.0,0.00021917,3]
[349783036,1737425443773,-151.0,0.00021917,2]
[349783037,1737425443783,-732.01,0.00021917,3]
[349783038,1737425443792,-151.0,0.00021917,2]
[349783039,1737425443801,-500.0,0.00021917,3]
[349783040,1737425443811,-151.0,0.00021917,2]
[349783041,1737425443820,-500.0,0.00021917,3]
[349783042,1737425443830,-248.04286737,0.00021917,3]
[349783043,1737425443843,-925.11,0.00021917,3]
[349783044,1737425443853,-500.0,0.00021917,3]
[349783045,1737425443862,-350.13129317,0.00021917,3]
[349783046,1737425443872,-10505.06,0.00021917,3]
[349783047,1737425443883,-500.0,0.00021917,3]
[349783048,1737425443893,-500.0,0.00021917,3]
[349783049,1737425443903,-625.71,0.00021917,3]
[349783050,1737425443913,-500.0,0.00021917,3]
[349783051,1737425443923,-891.11,0.00021917,3]
[349783052,1737425443933,-500.0,0.00021917,3]
[349783053,1737425443943,-500.0,0.00021917,3]
[349783054,1737425443953,-500.0,0.00021917,3]
[349783055,1737425443963,-502.82829066,0.00021917,3]
[349783056,1737425443973,-500.0,0.00021917,3]
[349783057,1737425443982,-500.0,0.00021917,3]
[349783058,1737425443992,-500.0,0.00021917,3]
[349783059,1737425444001,-500.0,0.00021917,3]
[349783060,1737425444011,-500.0,0.00021917,3]
[349783061,1737425444020,-11248.7,0.00021917,3]
[349783062,1737425444030,-500.0,0.00021917,3]
[349783063,1737425444039,-500.0,0.00021917,3]
[349783064,1737425444049,-500.0,0.00021917,3]
[349783065,1737425444059,-500.0,0.00021917,3]
[349783066,1737425444069,-500.0,0.00021917,3]
[349783067,1737425444221,-500.0,0.00021917,3]
[349783068,1737425444231,-500.0,0.00021917,3]
[349783069,1737425444241,-3587.52,0.00021917,3]
[349783070,1737425444251,-1133.47,0.00021917,3]
[349783071,1737425444260,-500.0,0.00021917,3]
[349783072,1737425444270,-500.0,0.00021917,3]
[349783073,1737425444279,-500.0,0.00021917,3]
[349783074,1737425444289,-5032.2,0.00021917,3]
[349783075,1737425444298,-500.0,0.00021917,3]
[349783076,1737425444307,-500.0,0.00021917,3]
[349783077,1737425444317,-417.74113894,0.00021917,3]
[349783078,1737425444326,-2075.93,0.00021917,3]
[349783079,1737425444335,-1709.77,0.00021917,3]
[349783080,1737425444347,-500.0,0.00021917,3]
[349783081,1737425444356,-500.0,0.00021917,3]
[349783082,1737425444366,-500.0,0.00021917,3]
[349783083,1737425444375,-500.0,0.00021917,3]
[349783084,1737425444384,-500.0,0.00021917,3]
[349783085,1737425444393,-500.0,0.00021917,3]
[349783086,1737425444402,-500.0,0.00021917,3]
[349783087,1737425444413,-833.68,0.00021917,3]
[349783088,1737425444422,-500.0,0.00021917,3]
[349783089,1737425444431,-823.49,0.00021917,3]
[349783090,1737425444440,-953.42,0.00021917,3]
[349783091,1737425444450,-500.0,0.00021917,3]
[349783092,1737425444459,-1782.41,0.00021917,3]
[349783093,1737425444468,-159.17444778,0.00021917,3]
[349783094,1737425444478,-500.0,0.00021917,3]
[349783095,1737425444488,-500.0,0.00021917,3]
[349783096,1737425444497,-500.0,0.00021917,3]
[349783097,1737425444507,-500.0,0.00021917,3]
[349783098,1737425444516,-500.0,0.00021917,3]
[349783099,1737425444525,-500.0,0.00021917,3]
[349783100,1737425444535,-500.0,0.00021917,3]
[349783101,1737425444544,-508.28860037,0.00021917,3]
[349783102,1737425444553,-502.13475737,0.00021917,3]
[349783103,1737425444562,-500.0,0.00021917,3]
[349783104,1737425444572,-500.0,0.00021917,3]
[349783105,1737425444581,-1136.54,0.00021917,3]
[349783106,1737425444593,-500.0,0.00021917,3]
[349783107,1737425444602,-1354.24,0.00021917,3]
[349783108,1737425444615,-862.82,0.00021917,3]
[349783109,1737425444624,-500.0,0.00021917,3]
[349783110,1737425444634,-646.06,0.00021917,3]
[349783111,1737425444644,-906.58,0.00021917,3]
[349783112,1737425444656,-500.0,0.00021917,3]
[349783113,1737425444665,-555.87620122,0.00021917,3]
[349783114,1737425444675,-1036.87,0.00021917,3]
[349783115,1737425444684,-500.0,0.00021917,3]
[349783116,1737425444694,-500.0,0.00021917,3]
[349783117,1737425444703,-500.0,0.00021917,3]
[349783118,1737425444712,-331.1736146,0.00021917,3]
[349783119,1737425444721,-511.16047879,0.00021917,3]
[349783120,1737425444732,-4776.31,0.00021917,3]
[349783121,1737425444742,-500.0,0.00021917,3]
[349783122,1737425444751,-500.0,0.00021917,3]
[349783123,1737425444760,-2580.83,0.00021917,3]
[349783124,1737425444770,-500.0,0.00021917,3]
[349783125,1737425444779,-501.23649907,0.00021917,3]
[349783126,1737425444789,-1530.47,0.00021917,3]
[349783127,1737425444798,-500.0,0.00021917,3]
[349783128,1737425444808,-500.0,0.00021917,3]
[349783129,1737425444817,-151.0,0.00021917,2]
[349783130,1737425444827,-151.0,0.00021917,2]
[349783131,1737425444836,-188.906643,0.00021917,2]
[349783132,1737425444846,-500.0,0.00021917,3]
[349783133,1737425444856,-1889.39,0.00021917,3]
[349783134,1737425444865,-500.0,0.00021917,3]
[349783135,1737425444874,-151.0,0.00021917,2]
[349783136,1737425444883,-500.0,0.00021917,3]
[349783137,1737425444892,-500.0,0.00021917,3]
[349783138,1737425444902,-2045.74,0.00021917,3]
[349783139,1737425444912,-500.0,0.00021917,3]
[349783140,1737425444922,-500.0,0.00021917,3]
[349783141,1737425444932,-3487.84,0.00021917,3]
[349783142,1737425444941,-4222.07,0.00021917,3]
[349783143,1737425444951,-151.0,0.00021917,2]
[349783144,1737425444961,-151.0,0.00021917,2]
[349783145,1737425444970,-151.0,0.00021917,2]
[349783146,1737425444980,-151.0,0.00021917,2]
[349783147,1737425444989,-253.997927,0.00021917,2]
[349783148,1737425444999,-500.0,0.00021917,3]
[349783149,1737425445008,-151.0,0.00021917,2]
[349783150,1737425445018,-151.0,0.00021917,2]
[349783151,1737425445027,-500.0,0.00021917,3]
[349783152,1737425445037,-2295.65,0.00021917,3]
[349783153,1737425445048,-500.0,0.00021917,3]
[349783154,1737425445057,-500.0,0.00021917,3]
[349783155,1737425445067,-500.0,0.00021917,3]
[349783156,1737425445076,-500.0,0.00021917,3]
[349783157,1737425445085,-500.0,0.00021917,3]
[349783158,1737425445097,-8270.84,0.00021917,3]
[349783159,1737425445106,-500.0,0.00021917,3]
[349783160,1737425445116,-13750.72,0.00021917,3]
[349783161,1737425445125,-500.0,0.00021917,3]
[349783162,1737425445135,-500.0,0.00021917,3]
[349783163,1737425445144,-500.0,0.00021917,3]
[349783164,1737425445153,-500.0,0.00021917,3]
[349783165,1737425445163,-501.08501306,0.00021917,3]
[349783166,1737425445173,-500.0,0.00021917,3]
[349783167,1737425445182,-500.0,0.00021917,3]
[349783168,1737425445192,-566.41,0.00021917,3]
[349783169,1737425445201,-828.78,0.00021917,3]
[349783170,1737425445211,-940.25,0.00021917,3]
[349783171,1737425445220,-500.0,0.00021917,3]
[349783172,1737425445230,-596.14,0.00021917,3]
[349783173,1737425445239,-500.0,0.00021917,3]
[349783174,1737425445249,-500.0,0.00021917,3]
[349783175,1737425445259,-500.0,0.00021917,3]
[349783176,1737425445268,-500.0,0.00021917,3]
[349783177,1737425445278,-771.92,0.00021917,3]
[349783178,1737425445287,-500.0,0.00021917,3]
[349783179,1737425445297,-500.0,0.00021917,3]
[349783180,1737425445307,-500.0,0.00021917,3]
[349783181,1737425445316,-1097.99,0.00021917,3]
[349783182,1737425445327,-1097.99,0.00021917,3]
[349783183,1737425445336,-44775.38,0.00021917,3]
[349783184,1737425445351,-1097.99,0.00021917,3]
[349783185,1737425445360,-500.0,0.00021917,3]
[349783186,1737425445369,-1097.99,0.00021917,3]
[349783187,1737425445379,-1097.99,0.00021917,3]
[349783188,1737425445389,-1097.99,0.00021917,3]
[349783189,1737425445398,-624.89,0.00021917,3]
[349783190,1737425445408,-1097.99,0.00021917,3]
[349783191,1737425445418,-1097.99,0.00021917,3]
[349783192,1737425445427,-1097.99,0.00021917,3]
[349783193,1737425445437,-500.0,0.00021917,3]
[349783194,1737425445447,-1097.99,0.00021917,3]
[349783195,1737425445457,-1097.99,0.00021917,3]
[349783196,1737425445467,-1097.99,0.00021917,3]
[349783197,1737425445477,-1097.99,0.00021917,3]
[349783198,1737425445487,-500.0,0.00021917,3]
[349783199,1737425445497,-1097.99,0.00021917,3]
[349783200,1737425445506,-1097.99,0.00021917,3]
[349783201,1737425445515,-1097.99,0.00021917,3]
[349783202,1737425445525,-1097.99,0.00021917,3]
[349783203,1737425445534,-500.0,0.00021917,3]
[349783204,1737425445543,-1097.99,0.00021917,3]
[349783205,1737425445552,-1097.99,0.00021917,3]
[349783206,1737425445562,-500.0,0.00021917,3]
[349783207,1737425445571,-1097.99,0.00021917,3]
[349783208,1737425445581,-1097.99,0.00021917,3]
[349783209,1737425445592,-500.0,0.00021917,2]
[349783210,1737425445602,-1097.99,0.00021917,3]
[349783211,1737425445612,-1097.99,0.00021917,3]
[349783212,1737425445625,-1098.03134517,0.00021917,3]
[349783213,1737425445634,-500.0,0.00021917,3]
[349783214,1737425445643,-2090.6,0.00021917,3]
[349783215,1737425445652,-6803.17,0.00021917,3]
[349783216,1737425445663,-220.65596191,0.00021917,3]
[349783217,1737425445672,-2152.86,0.00021917,3]
[349783218,1737425445682,-856.52,0.00021917,3]
[349783219,1737425445691,-500.0,0.00021917,3]
[349783220,1737425445701,-528.9,0.00021917,3]
[349783221,1737425445710,-727.47,0.00021917,3]
[349783222,1737425445720,-4027.71,0.00021917,3]
[349783223,1737425445729,-503.44880302,0.00021917,3]
[349783224,1737425445738,-506.26479582,0.00021917,3]
[349783225,1737425445748,-517.19437743,0.00021917,3]
[349783226,1737425445757,-2370.655,0.00021918,2]
[349783227,1737425445767,-876.0,0.00021918,3]
[349783228,1737425445776,-717.04985991,0.0002193,2]
[349783229,1737425445786,-500.0,0.00021973,2]
[349783230,1737425445795,-502.24223156,0.00021973,2]
[349783231,1737425445805,-500.0,0.00021973,2]
[349783232,1737425445814,-500.5437721,0.00021973,2]
[349783233,1737425445823,-160.27280906,0.00021973,2]
[349783234,1737425445833,-341.60605704,0.00021973,2]
[349783235,1737425445845,-500.0,0.00021973,2]
[349783236,1737425445855,-501.0669822,0.00021973,2]
[349783237,1737425445864,-500.0,0.00021973,2]
[349783238,1737425445873,-152.21,0.00021973,2]
[349783239,1737425445883,-4298.35958075,0.0002199,3]
[349783240,1737425445892,-3124.08577744,0.00022,5]
[349783241,1737425445902,-2760.90891624,0.00022,5]
[349783242,1737425445911,-27575.93095158,0.00022,3]
[349783251,1737425446107,-2476.76975775,0.00022,3]
[349783252,1737425446117,-7834.23024225,0.00022,2]
[349783253,1737425446129,-754.4420674,0.00022,2]
[349783259,1737425446496,-151.0,0.00021917,2]
[349783260,1737425446506,-4643.83432283,0.00022,2]
[349783261,1737425446518,-1312.39336752,0.00022,2]
[349783262,1737425446528,-151.0,0.00022,5]
[349783263,1737425446537,-151.0,0.00022,7]
[349783264,1737425446547,-151.0,0.00022,7]
[349783265,1737425446557,-151.0,0.00022,7]
[349783266,1737425446566,-151.0,0.00022,7]
[349783267,1737425446577,-170.0,0.00022,2]
[349783269,1737425446586,-376.95688033,0.00022003,3]
[349783270,1737425446599,-500.0,0.00022053,2]
[349783271,1737425446609,-182.79698944,0.00022053,2]
[349783272,1737425446622,-155.26,0.00022054,2]
[349783273,1737425446631,-939.17,0.00022054,3]
[349783274,1737425446641,-546.46115464,0.00022054,3]
[349783275,1737425446651,-500.0,0.00022054,3]
[349783276,1737425446664,-500.0,0.00022054,3]
[349783277,1737425446673,-500.0,0.00022054,3]
[349783278,1737425446683,-507.56251884,0.00022054,3]
[349783279,1737425446692,-506.79106598,0.00022054,3]
[349783280,1737425446702,-502.74160994,0.00022054,3]
[349783281,1737425446711,-513.02962415,0.00022054,3]
[349783282,1737425446721,-521.71,0.00022054,3]
[349783283,1737425446731,-488.05633228,0.00022054,3]
[349783284,1737425446743,-11.94366772,0.00022054,3]
[349783285,1737425446752,-177.01602806,0.00022054,3]
[349783286,1737425446762,-410.33405361,0.00022054,3]
[349783287,1737425446774,-94.6062647,0.00022054,3]
[349783288,1737425446783,-500.0,0.00022054,3]
[349783289,1737425446792,-325.13984022,0.00022054,3]
[349783290,1737425446934,-151.0,0.00021917,2]
[349783291,1737425446944,-151.0,0.00021917,2]
[349783292,1737425446954,-151.0,0.00021917,2]
[349783293,1737425446964,-151.0,0.00022,7]
[349783294,1737425446973,-174.86015978,0.00022054,3]
[349783295,1737425446983,-500.0,0.00022054,3]
[349783296,1737425446993,-505.64105026,0.00022054,3]
[349783297,1737425447003,-501.97059697,0.00022054,3]
[349783298,1737425447013,-509.17437858,0.00022054,3]
[349783299,1737425447022,-501.5002173,0.00022054,3]
[349783300,1737425447032,-500.0,0.00022054,3]
[349783301,1737425447042,-500.0,0.00022054,3]
[349783302,1737425447052,-500.0,0.00022054,3]
[349783303,1737425447062,-500.0,0.00022054,3]
[349783304,1737425447072,-500.0,0.00022054,3]
[349783305,1737425447081,-500.0,0.00022054,3]
[349783306,1737425447091,-505.75735357,0.00022054,3]
[349783307,1737425447101,-1043.64,0.00022054,3]
[349783308,1737425447110,-500.0,0.00022054,3]
[349783309,1737425447120,-500.0,0.00022054,3]
[349783310,1737425447130,-1009.13388455,0.00022054,3]
[349783311,1737425447139,-500.0,0.00022054,3]
[349783312,1737425447149,-500.0,0.00022054,3]
[349783313,1737425447158,-500.0,0.00022054,3]
[349783314,1737425447168,-500.0,0.00022054,3]
[349783315,1737425447178,-510.81572753,0.00022054,3]
[349783316,1737425447187,-508.79149948,0.00022054,3]
[349783317,1737425447196,-500.0,0.00022054,3]
[349783318,1737425447206,-719.35,0.00022054,3]
[349783319,1737425447215,-500.0,0.00022054,3]
[349783320,1737425447225,-507.20024059,0.00022054,3]
[349783321,1737425447234,-500.0,0.00022054,3]
[349783322,1737425447244,-500.0,0.00022054,3]
[349783323,1737425447253,-500.0,0.00022054,3]
[349783324,1737425447262,-151.0,0.00022054,7]
[349783325,1737425447272,-158.986284,0.00022054,7]
[349783326,1737425447281,-500.0,0.00022054,3]
[349783327,1737425447291,-647.53,0.00022054,3]
[349783328,1737425447301,-642.5,0.00022054,3]
[349783329,1737425447310,-500.0,0.00022054,3]
[349783330,1737425447319,-500.0,0.00022054,3]
[349783331,1737425447329,-448.02864254,0.00022054,3]
[349783332,1737425447339,-500.0,0.00022054,3]
[349783333,1737425447351,-500.0,0.00022054,3]
[349783334,1737425447360,-500.0,0.00022054,3]
[349783335,1737425447369,-243.8393572,0.00022054,3]
[349783336,1737425447379,-156.47322616,0.00022054,3]
[349783337,1737425447388,-511.46406395,0.00022054,3]
[349783338,1737425447397,-500.0,0.00022054,3]
[349783339,1737425447407,-500.0,0.00022054,3]
[349783340,1737425447416,-500.0,0.00022054,3]
[349783341,1737425447426,-500.0,0.00022054,3]
[349783342,1737425447435,-500.0,0.00022054,3]
[349783343,1737425447444,-618.72870649,0.00022054,3]
[349783344,1737425447453,-500.0,0.00022054,3]
[349783345,1737425447462,-500.0,0.00022054,3]
[349783346,1737425447471,-252.30866643,0.00022054,3]
[349783347,1737425447481,-1172.16,0.00022054,3]
[349783348,1737425447490,-508.29134539,0.00022054,3]
[349783349,1737425447499,-500.0,0.00022054,3]
[349783350,1737425447508,-516.77336052,0.00022054,3]
[349783351,1737425447518,-542.37,0.00022054,3]
[349783352,1737425447527,-500.0,0.00022054,3]
[349783353,1737425447536,-500.0,0.00022054,3]
[349783354,1737425447546,-500.0,0.00022054,2]
[349783355,1737425447555,-1661.87,0.00022054,3]
[349783356,1737425447565,-500.0,0.00022054,3]
[349783357,1737425447574,-505.14641898,0.00022054,3]
[349783358,1737425447583,-200.0,0.00022054,3]
[349783359,1737425447595,-500.0,0.00022054,3]
[349783360,1737425447605,-499.80553682,0.00022054,3]
[349783361,1737425447616,-500.0,0.00022054,3]
[349783362,1737425447626,-1184.49,0.00022054,3]
[349783363,1737425447636,-366.98968742,0.00022054,3]
[349783364,1737425447646,-500.0,0.00022054,3]
[349783365,1737425447659,-222.4734665,0.00022054,3]
[349783366,1737425447670,-500.0,0.00022054,3]
[349783367,1737425447680,-500.0,0.00022054,3]
[349783368,1737425447690,-500.0,0.00022054,3]
[349783369,1737425447700,-708.8,0.00022054,3]
[349783370,1737425447709,-500.0,0.00022054,3]
[349783371,1737425447719,-322.96343103,0.00022054,3]
[349783372,1737425447735,-177.03656897,0.00022054,3]
[349783373,1737425447744,-484.40652801,0.00022054,3]
[349783374,1737425447754,-1420.16,0.00022054,3]
[349783375,1737425447763,-500.0,0.00022054,3]
[349783376,1737425447773,-500.0,0.00022054,3]
[349783377,1737425447782,-500.0,0.00022054,3]
[349783378,1737425447792,-500.0,0.00022054,3]
[349783379,1737425447802,-500.0,0.00022054,3]
[349783380,1737425447811,-936.8,0.00022054,3]
[349783381,1737425447822,-500.0,0.00022054,3]
[349783382,1737425447831,-500.0,0.00022054,3]
[349783383,1737425447844,-500.0,0.00022054,3]
[349783384,1737425447854,-500.0,0.00022054,3]
[349783385,1737425447863,-500.0,0.00022054,3]
[349783386,1737425447872,-500.0,0.00022054,3]
[349783387,1737425447882,-500.0,0.00022054,3]
[349783388,1737425447891,-500.0,0.00022054,3]